Cogmind - Beta 15 @@@ ROGUE MODE // 2025.05.14 @ 16:11:56 Player: Miles Result: Destroyed by C-17 Slicer with Blade Saw Performance ------------- Evolutions (3) 1500 Regions Visited (5) 1000 Robots Destroyed (129) 645 Value Destroyed (3942) 3942 Prototype IDs (10) 200 Alien Tech Used (0) 0 Bonus (39) 39 TOTAL SCORE: 7326 Bonus ------- High Alert Combat Kills 39 Cogmind --------- Core Integrity 0/700 Matter 290/300 Energy 150/150 System Corruption 32% Temperature Cool (0) Movement Core (550) Ox10 Location -7/Factory Parts ------- > --- POWER (2) -------- Micro Nuclear Core > --- PROPULSION (3) --- (None) > --- UTILITY (5) ------ Large Storage Unit Improved Targeting Computer Microactuators > --- WEAPON (3) ------- Shock Maul > --- INVENTORY (15) --- Light Ion Engine Improved Heat Sink Advanced Heat Sink Large Matter Pod (150) Terrain Scanner Microactuators Improved Power Shielding Peak State ------------ > --- POWER ------------ Light Nuclear Core Improved Deuterium Engine > --- PROPULSION ------- Improved Carbon-fiber Leg Improved Titanium Leg Improved Titanium Leg > --- UTILITY ---------- Coolant Injector Large Storage Unit Improved Targeting Computer Microactuators Improved Power Shielding > --- WEAPON ----------- Cooled Pulse Rifle Gauss Rifle Shock Maul > --- INVENTORY -------- Light Nuclear Core Improved Titanium Leg Improved Titanium Leg Improved Titanium Leg Improved Titanium Leg Microactuators Improved Power Shielding Improved Light Armor Plating High-powered Shotgun Gauss Rifle Advanced EMP Blaster [Rating: 52] Favorites ----------- Power Light Nuclear Core Engine Light Ion Engine Power Core Light Nuclear Core Propulsion Aluminum Leg Treads Light Treads Leg Aluminum Leg Flight Unit Improved VTOL Module Utility Medium Storage Unit Device Heat Sink Storage Medium Storage Unit Processor Improved Targeting Computer Protection Improved Power Shielding Weapon Heavy Particle Gun Energy Gun Heavy Particle Gun Energy Cannon Beam Cannon Ballistic Gun Gauss Rifle Launcher Advanced EMP Blaster Impact Weapon Shock Maul Build | -11 -10 -9 -8 -8 -7 ------- Run | Yrd Mat Mat Mat Sto Fac Slots Evolved 6 | . . 2 2 . 2 Power 1 | . . . . . 1 Propulsion 1 | . . 1 . . . Utility 3 | . . 1 1 . 1 Weapon 1 | . . . 1 . . Parts Attached 109 | 10 1 10 16 28 44 Power 18 | 1 1 2 4 2 8 Engine 8 | 1 1 2 1 . 3 Core 10 | . . . 3 2 5 Reactor . | . . . . . . Propulsion 35 | 4 . 5 3 11 12 Treads 2 | 2 . . . . . Leg 30 | 2 . 5 3 8 12 Wheel . | . . . . . . Hover . | . . . . . . Flight 3 | . . . . 3 . Utility 28 | 2 . 1 4 8 13 Device 17 | 1 . . 4 5 7 Storage 6 | 1 . 1 . 2 2 Processor 1 | . . . . . 1 Hackware . | . . . . . . Protection 4 | . . . . 1 3 Artifact . | . . . . . . Weapon 28 | 3 . 2 5 7 11 Energy Gun 11 | 2 . . 2 3 4 Energy Cannon 1 | . . 1 . . . Ballistic Gun 12 | 1 . 1 3 1 6 Ballistic Cannon . | . . . . . . Launcher 3 | . . . . 2 1 Special Weapon . | . . . . . . Impact Weapon 1 | . . . . 1 . Slashing Weapon . | . . . . . . Piercing Weapon . | . . . . . . Special Melee Weapon . | . . . . . . Unidentified Prototypes 8 | . . 1 . 5 2 Corrupted Parts 5 | . . . . . 5 System Corruption 27 | . . . . . 27 Parts Lost 52 | . 1 2 9 15 25 Power 11 | . 1 1 1 3 5 Propulsion 16 | . . 1 2 5 8 Utility 12 | . . . 2 5 5 Weapon 13 | . . . 4 2 7 Highest Loss Streak 15 | . 1 2 8 4 15 To Critical Strikes 2 | . . . . . 2 Average Backups 7 | 4 7 6 6 8 7 Power 1 | . 1 . 1 1 . Propulsion 3 | 2 4 2 3 3 2 Utility 1 | . . . 1 . 2 Weapon 2 | . 1 2 . 2 2 Tool/Special . | . . . . . . Unused Backups 28 | 1 3 4 3 6 11 Power 5 | . . . 2 2 1 Propulsion 5 | . 2 2 1 . . Utility 13 | 1 1 . . 3 8 Weapon 5 | . . 2 . 1 2 Tool/Special . | . . . . . . Average Slot Usage (%) 94 | . 96 96 96 95 92 Engine 4 | . 11 9 6 . 4 Core 6 | . . . 2 8 7 Treads 2 | . 28 1 . . . Leg 21 | . . 29 26 25 21 Device 13 | . 13 11 19 12 13 Storage 17 | . 14 22 15 21 13 Processor 1 | . . . . . 3 Protection 1 | . . . . . 3 Energy Gun 11 | . 28 5 12 13 6 Energy Cannon 1 | . . 6 7 . . Ballistic Gun 5 | . . 9 5 5 7 Impact Weapon 3 | . . . . 6 4 Peak Build Rating 52 | 7 7 13 25 36 52 Average Rating 26 | 5 6 10 17 26 39 On Entrance 12 | . 7 7 13 19 26 Naked Turns . | . . . . . . Heaviest Build 53 | 12 12 19 28 42 53 Greatest Support 66 | 40 40 40 33 40 66 Greatest Overweight (x) 10 | . . . 1 4 10 Average Overweight (x) . | . . . . . . Largest Inventory Capacity 15 | 8 8 8 8 10 15 Average Capacity 9 | 6 8 8 8 9 11 Most Carried 12 | 8 8 8 8 10 12 Average Carried 7 | 4 7 6 6 8 7 Final Capacity 15 | 8 8 8 8 10 15 Final Carried 8 | 8 8 8 6 7 7 Class Distribution -------------------- 44% | Scavenger-Mutant 23% | Mutant 18% | Scavenger-Gunner 9% | Scavenger-Tank 4% | Gunner Dominant Class ---------------- Mutant | -10/Materials Scavenger-Mutant | -9/Materials Scavenger-Gunner | -8/Materials Scavenger-Mutant | -8/Storage Scavenger-Mutant | -7/Factory Resources | -11 -10 -9 -8 -8 -7 ----------- Run | Yrd Mat Mat Mat Sto Fac Matter Collected 2502 | 300 134 156 268 539 1105 Remotely 674 | 184 134 156 200 . . Salvage Created 4879 | 117 295 357 378 1880 1852 Parts 231 | 7 10 24 28 76 86 Haulers Intercepted 5 | . . . . 5 . Recyclers Shooed 1 | . . . . . 1 Parts Field Recycled . | . . . . . . Retrieved Matter . | . . . . . . Parts Self-Destructed . | . . . . . . Prevented . | . . . . . . Kills | -11 -10 -9 -8 -8 -7 ------- Run | Yrd Mat Mat Mat Sto Fac Combat Hostiles Destroyed 98 | . 8 7 14 33 36 Melee 10 | . . . . 5 5 Guns 61 | . 7 3 13 20 18 Cannons 4 | . . 3 1 . . AOE 13 | . . 1 . 2 10 Classes Destroyed 14 | 2 2 3 . 3 4 Worker 14 | 1 . 1 . 5 7 Builder 7 | . . 1 . 1 5 Hauler 5 | . . . . 5 . Recycler 3 | 1 . . . . 2 Mechanic 1 | . . . . . 1 Watcher 1 | . . 1 . . . Swarmer 26 | . 2 . 8 4 12 Cutter 3 | . . . . . 3 Grunt 43 | . 6 5 6 15 11 Brawler 1 | . . . . 1 . Sentry 15 | . . 2 . 12 1 Specialist 3 | . . . . . 3 Hunter 3 | . . . . 1 2 Programmer 4 | . . . . . 4 Best Kill Streak 13 | 1 3 6 5 6 13 Combat Bots Only 8 | . 3 5 5 4 8 Max Kills in Single Turn 5 | 1 1 2 1 2 5 Gunslinging 1 | . . 1 . 1 . Exploded 4 | . . 1 . 1 4 Melee 1 | . . . . 1 1 Uniques/NPCs Destroyed . | . . . . . . Combat | -11 -10 -9 -8 -8 -7 -------- Run | Yrd Mat Mat Mat Sto Fac Hostile Shots Fired 765 | . 48 41 91 202 383 Missed 196 | . 15 7 19 54 101 Hits 569 | . 33 34 72 148 282 Melee 29 | . . . . 1 28 Projectile 540 | . 33 34 72 147 254 AOE 1 | . . . . . 1 Critical Strikes 31 | . 1 2 7 7 14 Damage Taken 8342 | . 383 511 877 2193 4378 Core 1194 | . 10 95 68 320 701 Absorbed by Shields 164 | . . . 51 113 . Redirected to Shielding 100 | . . . . . 100 Regen/Repaired (Parts) 147 | . 10 . . 137 . Core Remaining (%) 75 | 100 96 76 . 29 . Volleys Fired 222 | 11 24 17 32 76 62 Largest 3 | 2 2 2 3 3 3 Hottest 173 | 90 90 83 148 173 114 Shots Fired 512 | 22 48 34 78 182 148 Gun 469 | 22 48 26 60 174 139 Cannon 26 | . . 8 18 . . Launcher 17 | . . . . 8 9 Special . | . . . . . . Kinetic 189 | . . 17 21 65 86 Thermal 305 | 22 48 17 57 109 52 Explosive 1 | . . . . . 1 Electromagnetic 17 | . . . . 8 9 Robot Hit Streak 20 | 4 10 11 20 10 16 Robot Miss Streak 5 | 5 3 2 4 3 5 Penetration Max 1 | . . . . . 1 Secondary Targets 6 | . . 1 . 1 4 Max Gunslinging Chain 1 | . . 1 . 1 1 Shots Hit Robots 378 | 10 34 24 50 140 120 Core Hits 187 | 3 14 13 21 61 75 Critical Kills 5 | . . . . 4 1 Critical Parts Destroyed 21 | . . . . 11 10 Critical Strikes 36 | . 3 . 2 19 12 Burn 10 | . 3 . 2 4 1 Destroy 2 | . . . . . 2 Smash 24 | . . . . 15 9 Melee Attacks 56 | . . . . 28 28 Impact 56 | . . . . 28 28 Slashing . | . . . . . . Piercing . | . . . . . . Sneak Attacks 10 | . . . . 6 4 Combat Hostiles 1 | . . . . 1 . Follow-up Attacks . | . . . . . . Damage Inflicted 10215 | 113 442 576 902 3640 4542 Guns 5631 | 113 442 267 704 1772 2333 Cannons 309 | . . 105 193 . 11 Explosions 1598 | . . 204 . 344 1050 Melee 2650 | . . . . 1502 1148 Ramming 27 | . . . 5 22 . Kinetic 2226 | . . 179 184 329 1534 Thermal 4133 | 113 442 397 713 1499 969 Explosive 92 | . . . . . 92 Electromagnetic 1076 | . . . . 288 788 Impact 2661 | . . . . 1502 1159 Slashing . | . . . . . . Piercing . | . . . . . . Highest Corruption 32 | . . . . 6 32 Average Corruption 5 | . . . . 4 7 Corruption Purged . | . . . . . . Corruption Blocked . | . . . . . . Effects 39 | . . . . 22 17 Message Errors 11 | . . . . 7 4 Matter Fused 9 | . . . . 6 3 Heat Flow Errors 6 | . . . . 4 2 Energy Discharges 2 | . . . . . 2 Parts Rejected 1 | . . . . 1 . Data Loss (minor) 3 | . . . . 1 2 Data Loss (major) 2 | . . . . 1 1 Misfires 3 | . . . . 2 1 Misdirections 2 | . . . . . 2 Overload Shots 3 | . . . . . 3 Effects 2 | . . . . . 2 Heat Surge 1 | . . . . . 1 Short Circuit 1 | . . . . . 1 Overflow Damage 1650 | . . 71 . 891 688 Projectiles 10 | . . . . . 10 Explosions 140 | . . 71 . 38 31 Melee 1500 | . . . . 853 647 Knockbacks 14 | . . . . 3 11 Impact 13 | . . . . 3 10 Kinetic . | . . . . . . Secondary 1 | . . . . . 1 Self-Inflicted Damage 382 | . . 61 . 198 123 Shots 14 | . . 1 . 8 5 Rammed . | . . . . . . Targets Rammed 4 | . . . 1 3 . Kicked 4 | . . . 1 3 . Crushed . | . . . . . . Highest Temperature 349 | 120 339 155 349 258 222 Average Temperature 77 | 57 108 72 110 46 81 Received Heat Transfer 2420 | . 204 207 469 910 630 Effects 1 | . 1 . . . . Shutdowns 1 | . 1 . . . . Siege Activations . | . . . . . . Martial Activations . | . . . . . . Shielding Activations . | . . . . . . Robots Disrupted . | . . . . . . Combat Hostiles . | . . . . . . Robots Corrupted 14 | . . . . 6 8 Combat Hostiles 9 | . . . . 6 3 Parts Fried 27 | . . . . 11 16 Impact Corruptions 41 | . . . . 21 20 Robots Melted 1 | . 1 . . . . Combat Hostiles 1 | . 1 . . . . Parts Melted 12 | . 1 . 1 6 4 Heat Transferred 8821 | 310 1411 631 1665 3195 1609 Parts Sabotaged . | . . . . . . Parts Stolen . | . . . . . . Parts Stripped . | . . . . . . Power Chain Reactions 5 | . . . . 2 3 Alert | -11 -10 -9 -8 -8 -7 ------- Run | Yrd Mat Mat Mat Sto Fac Maximum Alert Level 2 | . . . . 2 2 Low Security (%) 61 | 100 100 100 100 34 61 Level 1 33 | . . . . 54 38 Level 2 4 | . . . . 11 . Level 3 . | . . . . . . Level 4 . | . . . . . . Level 5 . | . . . . . . High Security . | . . . . . . Max Security . | . . . . . . Peak Influence 453 | 5 80 176 175 453 405 Initial 203 | . . . 59 47 203 Average 175 | . 28 94 90 251 181 Influence Increases 2990 | 10 180 248 366 1186 1000 Destroy 0b10 Robot/C 1960 | . 160 140 280 660 720 Destroy 0b10 Robot/NC 155 | 10 . 15 . 55 75 Destroy Leader 412 | . 20 42 40 190 120 Successful Hack 38 | . . . . 26 12 Disable Machine 135 | . . 15 . 90 30 Destroy Structure 65 | . . 36 1 15 13 Lose Combat Pursuer 225 | . . . 45 150 30 Influence Decreases 2606 | 10 180 105 396 852 1063 Entered New Map 394 | . . . 84 66 244 Time Decay 1672 | 10 170 95 222 616 559 Lost Part 510 | . 10 10 90 150 250 Lost Ally 30 | . . . . 20 10 Squads Dispatched 21 | . 2 2 3 4 10 Investigation 5 | . 1 1 1 1 1 Extermination 3 | . . . . . 3 Reinforcement 13 | . 1 1 2 3 6 Assault . | . . . . . . Garrison . | . . . . . . Intercept . | . . . . . . Searches Triggered . | . . . . . . Construction Impeded 2 | . . 1 . . 1 Haulers Reinforced . | . . . . . . Active Scanning Responses . | . . . . . . Cargo Convoy Interrupts 1 | . . . . . 1 Stealth | -11 -10 -9 -8 -8 -7 --------- Run | Yrd Mat Mat Mat Sto Fac Distress Signals 8 | . 1 . 1 4 2 Communications Jammed . | . . . . . . Distress Signals . | . . . . . . Times Spotted 154 | . 12 12 20 49 61 Peak Tracking Total 9 | . 3 5 6 5 9 Tactical Retreats 12 | . . . 3 7 2 Traps | -11 -10 -9 -8 -8 -7 ------- Run | Yrd Mat Mat Mat Sto Fac Traps Triggered 7 | . . 1 1 2 3 Indirectly 1 | . . . . . 1 Trap Hack Attempts . | . . . . . . Triggered . | . . . . . . Disarmed . | . . . . . . Reprogrammed . | . . . . . . Reused . | . . . . . . Traps Extracted . | . . . . . . Installed . | . . . . . . Triggered . | . . . . . . Machines | -11 -10 -9 -8 -8 -7 ---------- Run | Yrd Mat Mat Mat Sto Fac Machines Disabled 9 | . . 1 . 6 2 Max in Single Turn 1 | . . 1 . 1 1 Garrison Access 1 | . . . . 1 . Machines Repaired . | . . . . . . Machines Dismantled . | . . . . . . Machines Sabotaged . | . . . . . . Overloaded Fab Kills . | . . . . . . Hacking | -11 -10 -9 -8 -8 -7 --------- Run | Yrd Mat Mat Mat Sto Fac Machines Accessed 13 | . 1 2 . 8 2 Terminals 8 | . . 1 . 6 1 Fabricators . | . . . . . . Repair Stations 4 | . 1 1 . 1 1 Recycling Units . | . . . . . . Scanalyzers . | . . . . . . Garrison Access 1 | . . . . 1 . Total Hacks 27 | . 3 3 . 15 6 Successful 16 | . 2 1 . 11 2 Failed 11 | . 1 2 . 4 4 Catastrophic 1 | . . . . 1 . Database Lockouts . | . . . . . . Manual . | . . . . . . Terminals 12 | . . 1 . 9 2 Fabricators . | . . . . . . Repair Stations 13 | . 3 2 . 4 4 Recycling Units . | . . . . . . Scanalyzers . | . . . . . . Garrison Access 2 | . . . . 2 . Terminal Hacks 7 | . . . . 6 1 Prototype ID Bank 1 | . . . . 1 . Open Door 5 | . . . . 5 . Open DSF 1 | . . . . . 1 Fabricator Hacks . | . . . . . . Repair Station Hacks 8 | . 2 1 . 4 1 Scan Component 5 | . 1 1 . 2 1 Repair 3 | . 1 . . 2 . Recycling Unit Hacks . | . . . . . . Scanalyzer . | . . . . . . Garrison Access Hacks 1 | . . . . 1 . Seal Access 1 | . . . . 1 . Unauthorized Hacks . | . . . . . . Terminals . | . . . . . . Fabricators . | . . . . . . Repair Stations . | . . . . . . Recycling Units . | . . . . . . Scanalyzers . | . . . . . . Garrison Access . | . . . . . . Data Cores Recovered . | . . . . . . Used . | . . . . . . Hacking Detections 5 | . 1 . . 2 2 Full Trace Events 2 | . 1 . . . 1 Feedback Events . | . . . . . . Feedback Blocked . | . . . . . . Robot Schematics Acquired . | . . . . . . Robots Built . | . . . . . . Authchips . | . . . . . . Time . | . . . . . . Total Robot Build Rating . | . . . . . . Part Schematics Acquired . | . . . . . . Parts Built . | . . . . . . Authchips . | . . . . . . Time . | . . . . . . Total Part Build Rating . | . . . . . . Parts Repaired 3 | . 1 . . 2 . Time 102 | . 26 . . 76 . Parts Recycled . | . . . . . . Recycled Matter . | . . . . . . Retrieved Matter . | . . . . . . Retrieved Components . | . . . . . . Parts Scanalyzed . | . . . . . . Part Schematics Acquired . | . . . . . . Parts Damaged . | . . . . . . Bothacking | -11 -10 -9 -8 -8 -7 ------------ Run | Yrd Mat Mat Mat Sto Fac Used RIF Installer . | . . . . . . Robots Hacked . | . . . . . . Non-combat . | . . . . . . Combat . | . . . . . . Robot Hacks Applied . | . . . . . . Relay Couplers Released . | . . . . . . Fabnet Peak Effective % . | . . . . . . Robots Rewired . | . . . . . . Allies Hacked . | . . . . . . Hacks Repelled . | . . . . . . Allies | -11 -10 -9 -8 -8 -7 -------- Run | Yrd Mat Mat Mat Sto Fac Total Allies . | . . . . . . Largest Group . | . . . . . . Highest-Rated Group . | . . . . . . Highest-Rated Ally . | . . . . . . Total Orders . | . . . . . . Ally Attacks . | . . . . . . Total Damage . | . . . . . . Kills . | . . . . . . Allies Corrupted . | . . . . . . Allies Melted . | . . . . . . Intel | -11 -10 -9 -8 -8 -7 ------- Run | Yrd Mat Mat Mat Sto Fac Active Infowar (turns) . | . . . . . . Robot Analysis Total . | . . . . . . Derelict Logs Recovered . | . . . . . . Drone Launches 8 | . . . . 8 . Drone Recoveries 4 | . . . . 4 . Exploration | -11 -10 -9 -8 -8 -7 ------------- Run | Yrd Mat Mat Mat Sto Fac Turns Passed 5149 | 174 490 314 475 2041 1655 Spaces Moved 2585 | 83 228 187 270 1030 787 Core 7 | 5 . . . . 2 Treads 276 | 41 228 7 . . . Legs 2284 | 37 . 180 270 1012 785 Wheels . | . . . . . . Hover . | . . . . . . Flight 18 | . . . . 18 . Fastest Speed 50 | 50 160 120 120 99 110 Average Speed 140 | 135 160 121 120 136 152 Slowest Speed 550 | 160 160 160 190 315 550 Overloaded Moves . | . . . . . . Propulsion Burnouts . | . . . . . . Robots Hopped . | . . . . . . Potential Cave-ins . | . . . . . . Cave-ins Triggered . | . . . . . . Exploration Rate (%) 31 | 5 43 14 17 94 18 Regions Visited 5 Branch Regions 1 Pre-discovered Areas . | . . . . . . Known Exits Taken . | . . . . . . Unknown Exits Taken 5 | 1 1 1 1 1 . Scrap Searched . | . . . . . . Spaces Dug . | . . . . . . Terrain Destroyed 53 | . . 36 . 8 9 Melee . | . . . . . . Projectile . | . . . . . . AOE 53 | . . 36 . 8 9 Terrain Rammed . | . . . . . . Walls Destroyed . | . . . . . . Machines Disabled . | . . . . . . Actions | -11 -10 -9 -8 -8 -7 --------- Run | Yrd Mat Mat Mat Sto Fac Total 3582 | 123 306 246 360 1461 1086 Wait 377 | . 47 6 19 229 76 Move 2580 | 82 227 186 269 1029 787 Hop . | . . . . . . Pick Up 113 | 17 3 12 10 27 44 Fast Attach 19 | . 2 1 1 9 6 Attach 75 | 8 . 5 12 17 33 Detach 4 | 1 . . 1 1 1 Swap 58 | 2 . 6 8 19 23 Drop 74 | 2 3 13 7 23 26 Fire 222 | 11 24 17 32 76 62 Melee 56 | . . . . 28 28 Ram . | . . . . . . Kick 4 | . . . 1 3 . Crush . | . . . . . . Escape Stasis . | . . . . . . Rewire . | . . . . . . Trap . | . . . . . . Miscellaneous . | . . . . . . Route ------- -11/Scrapyard -10/Materials (discovered 2 exits: *Mat / [*Min]) -9/Materials -8/Materials (discovered 2 exits: *Sto x2) -8/Storage -7/Factory History --------- Turn | Location | Event 7 | -11/Scrapyard | Discovered new exit (range 15) 175 | -11/Scrapyard | Entered Materials 214 | -10/Materials | Repaired Tractor Beam 314 | -10/Materials | Build established: Mutant 473 | -10/Materials | Discovered new exit (range 8) 633 | -10/Materials | Discovered new exit (range 16) 665 | -10/Materials | Entered another Materials area 665 | -9/Materials | Evolved 2 slots: Propulsion x1, Utility x1 975 | -9/Materials | Discovered new exit (range 3) 979 | -9/Materials | Entered another Materials area 979 | -8/Materials | Evolved 2 slots: Utility x1, Weapon x1 1093 | -8/Materials | Discovered new exit (range 14) 1184 | -8/Materials | Discovered new exit (range 9) 1277 | -8/Materials | Build established: Scavenger-Gunner 1418 | -8/Materials | Lost 8 parts (1p2n2u3w) 1454 | -8/Materials | Entered Storage 2106 | -8/Storage | Build established: Scavenger-Mutant 2291 | -8/Storage | Repaired Lgt. Nuclear Core 2332 | -8/Storage | Repaired Carbon-fiber Leg 2461 | -8/Storage | Core integrity fell below 50% 2474 | -8/Storage | Lost 4 parts (1p1n2w) 3073 | -8/Storage | Lost 3 parts (2n1u) 3442 | -8/Storage | Discovered new exit (range 15) 3495 | -8/Storage | Entered Factory 3495 | -7/Factory | Accompanied by 2 allies 3495 | -7/Factory | Evolved 2 slots: Power x1, Utility x1 4735 | -7/Factory | Cargo convoy interrupted 4895 | -7/Factory | Core integrity fell below 50% 4908 | -7/Factory | Destroyed 8 combat bots 4928 | -7/Factory | Lost 15 parts (3p5n2u5w) 4935 | -7/Factory | System corruption reached 10% 4997 | -7/Factory | Lost 3 parts (2n1w) 5091 | -7/Factory | Lost 4 parts (2p2u) 5106 | -7/Factory | System corruption reached 30% 5136 | -7/Factory | Core integrity fell below 20% 5150 | -7/Factory | Destroyed by C-17 Slicer with Blade Saw Last Messages --------------- 05136_ Minigun severed. 05137_ The unstable cave ceiling collapses. 05138_ K-01 Serf collects debris. 05138_ U-05 Engineer lays Concrete. 05138_ Shock Rifle destroyed. 05139_ U-05 Engineer lays Concrete. 05139_ K-01 Serf collects debris. 05139_ U-05 Engineer lays Concrete. 05140_ R-06 Scavenger collects Wheel. 05140_ U-05 Engineer lays Concrete. 05141_ VSS Leg severed. 05141_ U-05 Engineer lays Concrete. 05141_ VSS Leg severed. 05142_ U-05 Engineer lays Concrete. 05142_ Coolant Injector severed. 05144_ System corrupted: Energy discharge (-33). 05144_ U-05 Engineer lays Concrete. 05144_ R-06 Scavenger collects Wheel. 05145_ Adv. Heat Sink severed. 05145_ U-05 Engineer lays Concrete. Map ----- +----------------------------------------------------+ | ?????????????????????????????????????????????????? | | ?????????????????????????????????????????????????? | | ?????????????????????????????????????????????????? | | ?????????????????????????????????????????????????? | | ?????????????????????????????????????????????????? | | ?????????????????????????????????????????????????? | | ?????????????????????????????????????????????????? | | ???????????????????? ?????????????????????????? | | ??????????????????? #????????????????????????? | | ??????????????????? #????????????????????????? | | ??????????????????"" #????????????????????????? | | ?????????????????""" +????????????????????????? | | ?????????????????""" #????????????????????????? | | ?????????????????? #????????????????????????? | | ?????????????????? #????????????????????????? | | ??????????????????# #????????????????????????? | | ??????????????????# #????????????????????????? | | ??????????????????# #########????????????????? | | ??????????????????# # [ #????????????????? | | ??????????????????# # #????????????????? | | ??????????????????#=%! #k #????????????????? | | ??????????????????# * #????????????????? | | ??????????????????# # #????????????????? | | ??????????????????#! #= % #????????????????? | | ??????????????????#%%!==#c%= #????????????????? | | ??????????????????#==%[%#@ #????????????????? | | ??????????????????#[ ==cc%! #????????????????? | | ??????????????????#= !%c#%|%% #????????????????? | | ??????????????????#!% %=# #????????????????? | | ??????????????????#####=# #????????????????? | | ????????????????????###=# #????????????????? | | ??????????????????????# # = #????????????????? | | ??????????????????????#=#=%! #????????????????? | | ??????????????????????#[# ! #???????########## | | ??????????????????????#%+% #???????# | | ??????????????????????#=################# """ "" | | ??????????????????????#[%"""T""" # """ "" | | ??????????????????????#^ # """ "" | | ????????????????????### ^ # | | ????????????????????# """"""""" + """ "" | | ????????????????????# # """ "" | | ????????????????????# """"""""" + """ "" | | ???????############## # | | ???????# # # | | ???????# """" """" # ####+### | | ???????#! """" """" # # # | | ???????# """" """" # # * ########## | | ???????# """" """" # # #????????? | | ???????# """" """" + #"""" #????????? | | ???????#! """" """" # #"""" ########## | +----------------------------------------------------+ Best States ------------- Heat Dissipation 53 Coolant Potential 65 Energy Generation 25 Energy Capacity 525 Matter Stores 400 Matter Capacity 400 Sight Range 16 Terrain Scan Density 10 Additional Mass Support 6 Armor Coverage 225 Power Shielding 66 Melee Speed Boost 20 Evasion (%) 55 Targeting Accuracy 6 Recoil Reduction 2 Particle Charging 15 Trap Extractor Capacity 6 Item Schematics ----------------- None Robot Schematics ------------------ None Fabricated ------------ Nothing Repaired ---------- Tractor Beam | 60% | -10/Materials Lgt. Nuclear Core | 6% | -8/Storage Carbon-fiber Leg | 18% | -8/Storage Alien Tech Used ----------------- None Achievements -------------- None Challenges ------------ None Game ------ Seed SmartbombMultireflexDiverter Manual? 0 Play Time 00:52:54 Cumulative 20.7 hours Start 2025.05.14 @ 14:01:34 End 2025.05.14 @ 16:11:56 Sessions 2 Manual Loads 0 Difficulty Rogue Special Mode None Game No. 39 Rogue 39 Adventurer 0 Explorer 0 Win Type - Total 0 Types 0/0/0/0/0/0/0/0/0/0 Lore% 6 Gallery% 22 Achievement% 17 Wizard Run 0 Options --------- Layout 1 ASCII 0 Keyboard 0 Movement Mouse Keybinds 0 Fullscreen 1 Font 24/Smallcaps Map View 50x35 Zoom Use 0% Tactical HUD 1 Map Filters NONE Filters NONE Steam 1 RUN: 497dad13-ed8e-4181-8a63-861787e2acae